lending/lending_fUSD_20250114
["ID","MTS","AMOUNT","RATE_DAILY","PERIOD"]
[348917221,1736872277096,-500.0,0.00012705,2]
[348917222,1736872277106,-1034.71,0.00012705,2]
[348917223,1736872277115,-856.72,0.00012705,2]
[348917224,1736872277125,-729.65,0.00012705,2]
[348917225,1736872277135,-1242.21,0.00012705,2]
[348917226,1736872277145,-807.27,0.00012705,2]
[348917227,1736872277154,-500.0,0.00012705,2]
[348917228,1736872277164,-1062.24,0.00012705,2]
[348917229,1736872277173,-446.76,0.00012705,2]
[348917230,1736872277182,-942.52,0.00012705,2]
[348917231,1736872277192,-570.32,0.00012705,2]
[348917232,1736872277202,-500.0,0.00012705,2]
[348917233,1736872277211,-957.09,0.00012705,2]
[348917234,1736872277220,-500.0,0.00012705,2]
[348917235,1736872277230,-500.0,0.00012705,2]
[348917236,1736872277239,-693.23,0.00012705,2]
[348917237,1736872277248,-3653.54,0.00012705,2]
[348917238,1736872277258,-583.72,0.00012705,2]
[348917239,1736872277268,-500.0,0.00012705,2]
[348917240,1736872277277,-500.0,0.00012705,2]
[348917241,1736872277287,-1575.62,0.00012705,2]
[348917242,1736872277297,-3284.13,0.00012705,2]
[348917243,1736872277310,-1170.16,0.00012705,2]
[348917244,1736872277320,-10132.63,0.00012705,2]
[348917245,1736872277329,-775.45,0.00012705,2]
[348917246,1736872277339,-500.0,0.00012705,2]
[348917247,1736872277350,-500.0,0.00012705,2]
[348917248,1736872277358,-1128.07,0.00012705,2]
[348917249,1736872277368,-773.5,0.00012705,2]
[348917250,1736872277378,-4764.34,0.00012705,2]
[348917251,1736872277388,-593.12,0.00012705,2]
[348917252,1736872277398,-1091.87,0.00012705,2]
[348917253,1736872277407,-804.34,0.00012705,2]
[348917254,1736872277417,-3004.08,0.00012705,2]
[348917255,1736872277427,-628.33,0.00012705,2]
[348917256,1736872277436,-721.13,0.00012705,2]
[348917257,1736872277445,-2906.87,0.00012705,2]
[348917258,1736872277454,-500.0,0.00012705,2]
[348917259,1736872277464,-6610.26,0.00012705,2]
[348917260,1736872277474,-500.0,0.00012705,2]
[348917261,1736872277483,-1597.69,0.00012705,2]
[348917262,1736872277493,-903.79,0.00012705,2]
[348917263,1736872277502,-483.48,0.00012705,2]
[348917264,1736872277512,-500.0,0.00012705,2]
[348917265,1736872277521,-5191.48,0.00012705,2]
[348917266,1736872277531,-505.24,0.00012705,2]
[348917267,1736872277540,-1417.4,0.00012705,2]
[348917268,1736872277549,-1623.37,0.00012705,2]
[348917269,1736872277559,-500.0,0.00012705,2]
[348917270,1736872277568,-500.0,0.00012705,2]
[348917271,1736872277581,-903.24,0.00012705,2]
[348917272,1736872277590,-1969.17,0.00012705,2]
[348917273,1736872277600,-962.15,0.00012705,2]
[348917274,1736872277610,-932.49,0.00012705,2]
[348917275,1736872277621,-956.86,0.00012705,2]
[348917276,1736872277631,-500.0,0.00012705,2]
[348917277,1736872277640,-1098.98,0.00012705,2]
[348917278,1736872277651,-3822.97,0.00012705,2]
[348917279,1736872277662,-500.0,0.00012705,2]
[348917280,1736872277672,-572.49,0.00012705,2]
[348917281,1736872277682,-500.0,0.00012705,2]
[348917282,1736872277691,-2529.39,0.00012705,2]
[348917283,1736872277701,-764.12,0.00012705,2]
[348917284,1736872277711,-987.24,0.00012705,2]
[348917285,1736872277720,-256.43661798,0.00012705,2]
[348917286,1736872277730,-500.0,0.00012705,2]
[348917287,1736872277740,-1889.58,0.00012705,2]
[348917288,1736872277750,-538.84,0.00012705,2]
[348917289,1736872277760,-500.0,0.00012705,2]
[348917290,1736872277770,-500.0,0.00012706,2]
[348917291,1736872277779,-500.0,0.00012706,2]
[348917292,1736872277790,-500.0,0.00012706,2]
[348917293,1736872277800,-547.14,0.00012706,2]
[348917294,1736872277809,-500.0,0.00012706,2]
[348917295,1736872277819,-500.0,0.00012706,2]
[348917296,1736872277828,-516.94,0.00012706,2]
[348917297,1736872277838,-500.0,0.00012706,2]
[348917298,1736872277848,-188.8533563,0.00012706,2]
[348917299,1736872277857,-500.0,0.00012706,2]
[348917300,1736872277867,-500.0,0.00012706,2]
[348917301,1736872277877,-500.0,0.00012706,2]
[348917302,1736872277886,-1451.36,0.00012706,2]
[348917303,1736872277896,-1176.92,0.00012706,2]
[348917304,1736872277906,-500.0,0.00012706,2]
[348917305,1736872277915,-1055.97,0.00012706,2]
[348917306,1736872277925,-500.0,0.00012706,2]
[348917307,1736872277935,-2317.71,0.00012706,2]
[348917308,1736872277944,-1470.32,0.00012706,2]
[348917309,1736872277954,-2492.01,0.00012706,2]
[348917310,1736872277964,-500.0,0.00012706,2]
[348917311,1736872277973,-1795.2,0.00012706,2]
[348917312,1736872277983,-500.0,0.00012706,2]
[348917313,1736872277993,-500.0,0.00012706,2]
[348917314,1736872278002,-231.282348,0.00012707,2]
[348917315,1736872278011,-231.282348,0.00012707,2]
[348917316,1736872278021,-160.990371,0.00012707,2]
[348917317,1736872278030,-306.195203,0.00012707,2]
[348917318,1736872278040,-306.195203,0.00012707,2]
[348917319,1736872278050,-500.0,0.00012707,2]
[348917320,1736872278060,-662.39,0.00012707,2]
[348917321,1736872278070,-1350.0,0.00012713,2]
[348917322,1736872278080,-1350.0,0.0001274,2]
[348917323,1736872278089,-3000.0,0.0001274,2]
[348917324,1736872278100,-1350.0,0.00012767,2]
[348917325,1736872278110,-187.84955478,0.0001278,2]
[348917326,1736872278120,-16222.94448749,0.0001278,2]
[348917327,1736872278129,-179.01749997,0.0001278,2]
[348917328,1736872278139,-38494.3026314,0.00012781,7]
[348917329,1736872278149,-8043.08820867,0.00012781,7]
[348917330,1736872278159,-429.5630163,0.00012781,7]
[348917331,1736872278169,-168.385917,0.00012781,2]
[348917332,1736872278179,-865.18296,0.00012781,2]
[348917333,1736872278188,-865.18296,0.00012781,2]
[348917334,1736872278199,-400.0,0.00012781,2]
[348917335,1736872278209,-400.0,0.00012781,2]
[348917336,1736872278219,-151.0,0.00012781,2]
[348917337,1736872278229,-193.646661,0.00012781,2]
[348917338,1736872278238,-151.0,0.00012781,2]
[348917339,1736872278248,-193.646661,0.00012781,2]
[348917340,1736872278258,-1350.0,0.00012795,2]
[348917341,1736872278268,-1350.0,0.00012822,2]
[348917342,1736872278278,-1350.0,0.0001285,2]
[348917343,1736872278288,-437.19,0.0001286,2]
[348917344,1736872278297,-500.0,0.00012871,2]
[348917345,1736872278307,-1272.04,0.00012871,2]
[348917346,1736872278319,-673.02,0.00012871,2]
[348917347,1736872278328,-1169.12,0.00012871,2]
[348917348,1736872278337,-1255.21,0.00012871,2]
[348917349,1736872278346,-1678.69,0.00012871,2]
[348917350,1736872278356,-3037.98,0.00012871,2]
[348917351,1736872278366,-875.97,0.00012871,2]
[348917352,1736872278376,-591.05723012,0.00012871,2]
[348917353,1736872278386,-957.02,0.00012871,2]
[348917354,1736872278396,-1235.2,0.00012871,2]
[348917355,1736872278406,-1325.08,0.00012871,2]
[348917356,1736872278415,-2577.59,0.00012871,2]
[348917357,1736872278425,-1000.0,0.00012871,2]
[348917358,1736872278435,-2254.21,0.00012871,2]
[348917359,1736872278444,-250.99,0.00012877,2]
[348917360,1736872278454,-300.0,0.00012879,2]
[348917361,1736872278464,-2000000.0,0.0001288,2]
[348917362,1736872278473,-231.282348,0.0001288,2]
[348917363,1736872278483,-231.282348,0.0001288,2]
[348917364,1736872278492,-306.195203,0.0001288,2]
[348917365,1736872278502,-306.195203,0.0001288,2]
[348917366,1736872278512,-151.0,0.0001288,2]
[348917367,1736872278521,-151.0,0.0001288,2]
[348917368,1736872278531,-151.0,0.0001288,2]
[348917369,1736872278540,-3495.232678,0.0001288,2]
[348917370,1736872278550,-3495.232678,0.0001288,2]
[348917371,1736872278560,-400.826018,0.0001288,2]
[348917372,1736872278570,-400.826018,0.0001288,2]
[348917373,1736872278747,-215.424164,0.0001288,2]
[348917374,1736872278758,-4825.284633,0.0001288,2]
[348917375,1736872278768,-4825.284633,0.0001288,2]
[348917376,1736872278778,-151.0,0.0001288,2]
[348917377,1736872278788,-576.87749,0.0001288,2]
[348917378,1736872278798,-576.87749,0.0001288,2]
[348917379,1736872278808,-419.331084,0.0001288,2]
[348917380,1736872278817,-419.331084,0.0001288,2]
[348917381,1736872278830,-233.424069,0.0001288,2]
[348917382,1736872278842,-617.55721,0.0001288,2]
[348917383,1736872278852,-617.55721,0.0001288,2]
[348917384,1736872278862,-233.424069,0.0001288,2]
[348917385,1736872278873,-865.18296,0.0001288,2]
[348917386,1736872278884,-865.18296,0.0001288,2]
[348917387,1736872278895,-10000.0,0.0001288,2]
[348917388,1736872278905,-10000.0,0.0001288,2]
[348917389,1736872278915,-10000.0,0.0001288,2]
[348917390,1736872278925,-400.0,0.0001288,2]
[348917391,1736872278936,-151.0,0.0001288,2]
[348917392,1736872278946,-400.0,0.0001288,2]
[348917393,1736872278956,-151.0,0.0001288,2]
[348917394,1736872278966,-193.646661,0.0001288,2]
[348917395,1736872278976,-151.0,0.0001288,2]
[348917396,1736872278986,-193.646661,0.0001288,2]
[348917397,1736872278996,-151.0,0.0001288,2]
[348917398,1736872279005,-162.689257,0.0001288,2]
[348917399,1736872279015,-1170.67769,0.0001288,2]
[348917400,1736872279026,-151.0,0.0001288,2]
[348917401,1736872279035,-1170.67769,0.0001288,2]
[348917402,1736872279045,-1462.648682,0.0001288,2]
[348917403,1736872279055,-1462.648682,0.0001288,2]
[348917404,1736872279064,-151.0,0.0001288,2]
[348917405,1736872279074,-332.42142368,0.000129,7]
[348917406,1736872279083,-1271.53,0.00012903,2]
[348917407,1736872279095,-1644.81,0.00012903,2]
[348917408,1736872279106,-1764.64,0.00012903,2]
[348917409,1736872279118,-1182.39,0.00012903,2]
[348917410,1736872279128,-2864.91,0.00012903,2]
[348917411,1736872279138,-2088.07,0.00012903,2]
[348917412,1736872279148,-3460.76,0.00012903,2]
[348917413,1736872279157,-3934.84,0.00012903,2]
[348917414,1736872279167,-1542.99,0.00012903,2]
[348917415,1736872279177,-4501.55,0.00012903,2]
[348917416,1736872279187,-1000.0,0.00012904,2]
[348917417,1736872279196,-152.0,0.00012938,3]
[348917418,1736872279207,-2340.78,0.00012972,2]
[348917419,1736872279217,-3843.52,0.00012972,2]
[348917420,1736872279227,-1528.57,0.00012972,2]
[348917421,1736872279237,-1660.46,0.00012972,2]
[348917422,1736872279246,-1123.89,0.00012972,2]
[348917423,1736872279256,-1056.44,0.00012972,2]
[348917424,1736872279266,-2582.46,0.00012978,2]
[348917425,1736872279275,-3766.22,0.00012978,2]
[348917426,1736872279285,-2301.61,0.00012978,2]
[348917427,1736872279295,-276.95747859,0.00012978,2]
[348917428,1736872279306,-1547.57,0.00012978,2]
[348917429,1736872279318,-3820.79,0.00012978,2]
[348917430,1736872279328,-500.0,0.00012978,2]
[348917431,1736872279338,-500.0,0.00012978,2]
[348917432,1736872279349,-1208.85,0.00012978,2]
[348917433,1736872279358,-1426.4,0.00012978,2]
[348917434,1736872279368,-500.0,0.00012979,2]
[348917435,1736872279378,-583.02,0.00012979,2]
[348917436,1736872279388,-714.03,0.00012979,2]
[348917437,1736872279398,-524.04579178,0.00012979,2]
[348917438,1736872279407,-1181.5,0.00012979,2]
[348917439,1736872279417,-792.24,0.00012979,2]
[348917440,1736872279426,-1068.78,0.00012979,2]
[348917441,1736872279436,-866.79,0.00012979,2]
[348917442,1736872279446,-500.0,0.00012979,2]
[348917443,1736872279456,-602.0,0.00012979,2]
[348917444,1736872279465,-508.85,0.00012979,2]
[348917445,1736872279475,-634.25,0.00012979,2]
[348917446,1736872279486,-536.73,0.00012979,2]
[348917447,1736872279496,-692.74,0.00012979,2]
[348917448,1736872279505,-1038.27,0.00012979,2]
[348917449,1736872279515,-516.91,0.00012979,2]
[348917450,1736872279526,-747.3,0.00012979,2]
[348917451,1736872279536,-500.0,0.00012979,2]
[348917452,1736872279548,-561.38,0.00012979,2]
[348917453,1736872279559,-988.41,0.00012979,2]
[348917454,1736872279574,-1790.56,0.00012979,2]
[348917455,1736872279588,-681.34,0.00012979,2]
[348917456,1736872279599,-500.0,0.00012979,2]
[348917457,1736872279610,-500.0,0.00012979,2]
[348917458,1736872279620,-500.0,0.00012979,2]
[348917459,1736872279630,-797.39,0.00012979,2]
[348917460,1736872279639,-500.0,0.00012979,2]
[348917461,1736872279649,-178.05136552,0.00012979,2]
[348917462,1736872279659,-778.29,0.00012979,2]
[348917463,1736872279669,-500.0,0.00012979,2]
[348917464,1736872279678,-940.99,0.00012979,2]
[348917465,1736872279688,-1006.25,0.00012979,2]
[348917466,1736872279698,-1229.29,0.00012979,2]
[348917467,1736872279708,-500.0,0.00012979,2]
[348917468,1736872279718,-976.73,0.00012979,2]
[348917469,1736872279728,-563.76,0.00012979,2]
[348917470,1736872279737,-1040.02,0.00012979,2]
[348917471,1736872279747,-1044.65,0.00012979,2]
[348917472,1736872279757,-747.75,0.00012979,2]
[348917473,1736872279766,-942.04,0.00012979,2]
[348917474,1736872279776,-1793.87,0.00012979,2]
[348917475,1736872279786,-1163.45,0.00012979,2]
[348917476,1736872279796,-500.0,0.00012979,2]
[348917477,1736872279806,-593.13,0.00012979,2]
[348917478,1736872279815,-321.40979671,0.00012979,2]
[348917479,1736872279825,-500.0,0.00012979,2]
[348917480,1736872279835,-500.0,0.00012979,2]
[348917481,1736872279845,-1074.9,0.00012979,2]
[348917482,1736872279855,-1106.23,0.00012979,2]
[348917483,1736872279865,-1223.96,0.00012979,2]
[348917484,1736872279875,-2876.96,0.00012979,2]
[348917485,1736872279884,-608.5068623,0.00012979,2]
[348917486,1736872279894,-941.53,0.00012979,2]
[348917487,1736872279904,-826.21,0.00012979,2]
[348917488,1736872279913,-713.39,0.00012979,2]
[348917489,1736872279923,-1982.6,0.00012979,2]
[348917490,1736872279932,-1061.78,0.00012979,2]
[348917491,1736872279942,-1269.8,0.00012979,2]
[348917492,1736872279951,-1071.15,0.00012979,2]
[348917493,1736872279960,-647.07,0.00012979,2]
[348917494,1736872279970,-1641.47,0.00012979,2]
[348917495,1736872279979,-1015.13304,0.00012979,2]
[348917496,1736872279990,-475.08166267,0.00012979,2]
[348917497,1736872279999,-1061.21,0.00012979,2]
[348917498,1736872280009,-500.0,0.00012979,2]
[348917499,1736872280019,-850.59,0.00012979,2]
[348917500,1736872280030,-500.0,0.00012979,2]
[348917501,1736872280039,-4483.26,0.00012979,2]
[348917502,1736872280050,-1028.024937,0.00012979,2]
[348917503,1736872280060,-1008.96,0.00012979,2]
[348917504,1736872280069,-500.0,0.00012979,2]
[348917505,1736872280078,-1034.71,0.00012979,2]
[348917506,1736872280087,-856.72,0.00012979,2]
[348917507,1736872280097,-729.65,0.00012979,2]
[348917508,1736872280106,-807.27,0.00012979,2]
[348917509,1736872280116,-1242.21,0.00012979,2]
[348917510,1736872280126,-500.0,0.00012979,2]
[348917511,1736872280135,-1062.24,0.00012979,2]
[348917512,1736872280145,-942.52,0.00012979,2]
[348917513,1736872280156,-570.32,0.00012979,2]
[348917514,1736872280166,-627.06140125,0.00012979,2]
[348917515,1736872280176,-957.09,0.00012979,2]
[348917516,1736872280186,-500.0,0.00012979,2]
[348917517,1736872280196,-500.0,0.00012979,2]
[348917518,1736872280205,-693.23,0.00012979,2]
[348917519,1736872280215,-3653.54,0.00012979,2]
[348917520,1736872280225,-583.72,0.00012979,2]
[348917521,1736872280234,-500.0,0.00012979,2]
[348917522,1736872280243,-1575.62,0.00012979,2]
[348917523,1736872280252,-500.0,0.00012979,2]
[348917524,1736872280262,-3284.13,0.00012979,2]
[348917525,1736872280272,-1170.16,0.00012979,2]
[348917526,1736872280282,-10132.63,0.00012979,2]
[348917527,1736872280292,-775.45,0.00012979,2]
[348917528,1736872280301,-500.0,0.00012979,2]
[348917529,1736872280312,-1128.07,0.00012979,2]
[348917530,1736872280322,-500.0,0.00012979,2]
[348917531,1736872280338,-773.5,0.00012979,2]
[348917532,1736872280348,-4764.34,0.00012979,2]
[348917533,1736872280358,-593.12,0.00012979,2]
[348917534,1736872280367,-1091.87,0.00012979,2]
[348917535,1736872280378,-804.34,0.00012979,2]
[348917536,1736872280389,-3004.08,0.00012979,2]
[348917537,1736872280400,-628.33,0.00012979,2]
[348917538,1736872280409,-721.13,0.00012979,2]
[348917539,1736872280419,-2906.87,0.00012979,2]
[348917540,1736872280428,-500.0,0.00012979,2]
[348917541,1736872280437,-6610.26,0.00012979,2]
[348917542,1736872280447,-500.0,0.00012979,2]
[348917543,1736872280458,-1597.69,0.00012979,2]
[348917544,1736872280467,-903.79,0.00012979,2]
[348917545,1736872280476,-500.0,0.00012979,2]
[348917546,1736872280486,-5191.48,0.00012979,2]
[348917547,1736872280495,-505.24,0.00012979,2]
[348917548,1736872280505,-1417.4,0.00012979,2]
[348917549,1736872280514,-1623.37,0.00012979,2]
[348917550,1736872280526,-500.0,0.00012979,2]
[348917551,1736872280536,-500.0,0.00012979,2]
[348917552,1736872280545,-903.24,0.00012979,2]
[348917553,1736872280555,-1969.17,0.00012979,2]
[348917554,1736872280564,-962.15,0.00012979,2]
[348917555,1736872280574,-932.49,0.00012979,2]
[348917556,1736872280583,-956.86,0.00012979,2]
[348917557,1736872280593,-1098.98,0.00012979,2]
[348917558,1736872280603,-500.0,0.00012979,2]
[348917559,1736872280613,-3822.97,0.00012979,2]
[348917560,1736872280622,-500.0,0.00012979,2]
[348917561,1736872280632,-572.49,0.00012979,2]
[348917562,1736872280642,-500.0,0.00012979,2]
[348917563,1736872280652,-2529.39,0.00012979,2]
[348917564,1736872280661,-764.12,0.00012979,2]
[348917565,1736872280671,-987.24,0.00012979,2]
[348917566,1736872280680,-500.0,0.00012979,2]
[348917567,1736872280689,-1889.58,0.00012979,2]
[348917568,1736872280699,-538.84,0.00012979,2]
[348917569,1736872280708,-500.0,0.00012979,2]
[348917570,1736872280717,-500.0,0.0001298,2]
[348917571,1736872280726,-383.25175024,0.0001298,2]
[348917572,1736872280735,-500.0,0.0001298,2]
[348917573,1736872280745,-547.14,0.0001298,2]
[348917574,1736872280754,-500.0,0.0001298,2]
[348917575,1736872280764,-500.0,0.0001298,2]
[348917576,1736872280773,-500.0,0.0001298,2]
[348917577,1736872280782,-500.0,0.0001298,2]
[348917578,1736872280792,-500.0,0.0001298,2]
[348917579,1736872280802,-197.34748536,0.0001298,2]
[348917580,1736872280811,-1451.36,0.0001298,2]
[348917581,1736872280821,-500.0,0.0001298,2]
[348917582,1736872280829,-1176.92,0.0001298,2]
[348917583,1736872280839,-1055.97,0.0001298,2]
[348917584,1736872280848,-500.0,0.0001298,2]
[348917585,1736872280858,-2317.71,0.0001298,2]
[348917586,1736872280868,-1470.32,0.0001298,2]
[348917587,1736872280878,-2492.01,0.0001298,2]
[348917588,1736872280889,-1795.2,0.0001298,2]
[348917589,1736872280898,-500.0,0.0001298,2]
[348917590,1736872280907,-500.0,0.00012981,2]
[348917591,1736872280917,-662.39,0.00012981,2]
[348917592,1736872280927,-150.0,0.00012996,2]
[348917593,1736872280936,-18670.42408743,0.00013,15]
[348917594,1736872280945,-18343.90468861,0.00013,7]
[348917595,1736872280954,-3500.0,0.00013,2]
[348917596,1736872280964,-4228.51014974,0.00013,2]
[348917597,1736872280973,-2565.08255436,0.00013,2]
[348917598,1736872280983,-437.01157878,0.00013,2]
[348917599,1736872280992,-498.34579886,0.00013,5]
[348917600,1736872281002,-600.0,0.00013,3]
[348917601,1736872281011,-600.0,0.00013,2]
[348917602,1736872281021,-283.14590323,0.00013019,2]
[348917603,1736872281030,-3181.98991849,0.00013038,2]
[348917604,1736872281039,-5105.76238752,0.0001305,2]
[348917605,1736872281048,-1456.54324193,0.00013066,2]
[348917606,1736872281057,-279.52,0.00013091,2]
[348917607,1736872281067,-500.0,0.00013145,2]
[348917608,1736872281076,-1272.04,0.00013145,2]
[348917609,1736872281086,-673.02,0.00013145,2]
[348917610,1736872281095,-1169.12,0.00013145,2]
[348917611,1736872281104,-1255.21,0.00013145,2]
[348917612,1736872281113,-1678.69,0.00013145,2]
[348917613,1736872281122,-3037.98,0.00013145,2]
[348917614,1736872281131,-875.97,0.00013145,2]
[348917615,1736872281140,-957.02,0.00013145,2]
[348917616,1736872281150,-1235.2,0.00013145,2]
[348917617,1736872281161,-1325.08,0.00013145,2]
[348917618,1736872281170,-2577.59,0.00013145,2]
[348917619,1736872281179,-1000.0,0.00013145,2]
[348917620,1736872281188,-2254.21,0.00013145,2]
[348917621,1736872281197,-999.0,0.0001315,4]
[348917622,1736872281206,-7200.0,0.0001315,2]
[348917623,1736872281215,-700.0,0.0001315,2]
[348917624,1736872281225,-2600.0,0.0001315,2]
[348917625,1736872281235,-1271.53,0.00013177,2]
[348917626,1736872281244,-1644.81,0.00013177,2]
[348917627,1736872281254,-1764.64,0.00013177,2]
[348917628,1736872281263,-1182.39,0.00013177,2]
[348917629,1736872281273,-2864.91,0.00013177,2]
[348917630,1736872281283,-2088.07,0.00013177,2]
[348917631,1736872281299,-3460.76,0.00013177,2]
[348917632,1736872281320,-3934.84,0.00013177,2]
[348917633,1736872281336,-1542.99,0.00013177,2]
[348917634,1736872281345,-4501.55,0.00013177,2]
[348917635,1736872281354,-484.40542836,0.00013194,2]
[348917636,1736872281364,-152.0,0.00013204,4]
[348917637,1736872281373,-150.0,0.00013232,2]
[348917638,1736872281383,-150.0,0.00013232,2]
[348917639,1736872281392,-2340.78,0.00013246,2]
[348917640,1736872281401,-3843.52,0.00013246,2]
[348917641,1736872281411,-1528.57,0.00013246,2]
[348917642,1736872281421,-1660.46,0.00013246,2]
[348917643,1736872281431,-1123.89,0.00013246,2]
[348917644,1736872281441,-1056.44,0.00013246,2]
[348917645,1736872281451,-2582.46,0.00013252,2]
[348917646,1736872281460,-3766.22,0.00013252,2]
[348917647,1736872281470,-2301.61,0.00013252,2]
[348917648,1736872281480,-1547.57,0.00013252,2]
[348917649,1736872281489,-3820.79,0.00013252,2]
[348917650,1736872281498,-500.0,0.00013252,2]
[348917651,1736872281507,-198.99920892,0.00013252,2]
[348917652,1736872281517,-1208.85,0.00013252,2]
[348917653,1736872281526,-1426.4,0.00013252,2]
[348917654,1736872281535,-500.0,0.00013253,2]
[348917655,1736872281544,-583.02,0.00013253,2]
[348917656,1736872281553,-714.03,0.00013253,2]
[348917657,1736872281562,-1181.5,0.00013253,2]
[348917658,1736872281571,-792.24,0.00013253,2]
[348917659,1736872281580,-1068.78,0.00013253,2]
[348917660,1736872281589,-866.79,0.00013253,2]
[348917661,1736872281601,-500.0,0.00013253,2]
[348917662,1736872281610,-602.0,0.00013253,2]
[348917663,1736872281619,-508.85,0.00013253,2]
[348917664,1736872281629,-634.25,0.00013253,2]
[348917665,1736872281638,-536.73,0.00013253,2]
[348917666,1736872281647,-692.74,0.00013253,2]
[348917667,1736872281656,-1038.27,0.00013253,2]
[348917668,1736872281665,-516.91,0.00013253,2]
[348917669,1736872281676,-747.3,0.00013253,2]
[348917670,1736872281685,-500.0,0.00013253,2]
[348917671,1736872281694,-561.38,0.00013253,2]
[348917672,1736872281704,-988.41,0.00013253,2]
[348917673,1736872281713,-681.34,0.00013253,2]
[348917674,1736872281723,-1790.56,0.00013253,2]
[348917675,1736872281732,-500.0,0.00013253,2]
[348917676,1736872281741,-500.0,0.00013253,2]
[348917677,1736872281750,-500.0,0.00013253,2]
[348917678,1736872281759,-797.39,0.00013253,2]
[348917679,1736872281769,-500.0,0.00013253,2]
[348917680,1736872281778,-778.29,0.00013253,2]
[348917681,1736872281788,-369.07565212,0.00013253,2]
[348917682,1736872281797,-940.99,0.00013253,2]
[348917683,1736872281806,-1006.25,0.00013253,2]
[348917684,1736872281814,-1229.29,0.00013253,2]
[348917685,1736872281978,-500.0,0.00013253,2]
[348917686,1736872281988,-976.73,0.00013253,2]
[348917687,1736872281999,-563.76,0.00013253,2]
[348917688,1736872282008,-1040.02,0.00013253,2]
[348917689,1736872282018,-1044.65,0.00013253,2]
[348917690,1736872282027,-747.75,0.00013253,2]
[348917691,1736872282038,-942.04,0.00013253,2]
[348917692,1736872282047,-1793.87,0.00013253,2]
[348917693,1736872282057,-1163.45,0.00013253,2]
[348917694,1736872282066,-500.0,0.00013253,2]
[348917695,1736872282076,-593.13,0.00013253,2]
[348917696,1736872282085,-500.0,0.00013253,2]
[348917697,1736872282094,-500.0,0.00013253,2]
[348917698,1736872282104,-1074.9,0.00013253,2]
[348917699,1736872282114,-1106.23,0.00013253,2]
[348917700,1736872282124,-1223.96,0.00013253,2]
[348917701,1736872282133,-2876.96,0.00013253,2]
[348917702,1736872282143,-941.53,0.00013253,2]
[348917703,1736872282153,-826.21,0.00013253,2]
[348917704,1736872282162,-713.39,0.00013253,2]
[348917705,1736872282172,-1982.6,0.00013253,2]
[348917706,1736872282182,-1061.78,0.00013253,2]
[348917707,1736872282192,-1269.8,0.00013253,2]
[348917708,1736872282201,-1071.15,0.00013253,2]
[348917709,1736872282211,-647.07,0.00013253,2]
[348917710,1736872282220,-1641.47,0.00013253,2]
[348917711,1736872282229,-1015.13304,0.00013253,2]
[348917712,1736872282239,-162.448013,0.00013253,2]
[348917713,1736872282249,-1061.21,0.00013253,2]
[348917714,1736872282259,-157.219921,0.00013253,2]
[348917715,1736872282269,-500.0,0.00013253,2]
[348917716,1736872282279,-850.59,0.00013253,2]
[348917717,1736872282288,-500.0,0.00013253,2]
[348917718,1736872282298,-4483.26,0.00013253,2]
[348917719,1736872282309,-1028.024937,0.00013253,2]
[348917720,1736872282319,-1008.96,0.00013253,2]